fUSD/lending_fUSD_20260624
["ID","MTS","AMOUNT","RATE_DAILY","PERIOD"]
[426289053,1782247832000,-497.44239068,8.823e-05,2]
[426289054,1782247832000,-500.0,8.823e-05,2]
[426289056,1782247832000,-500.0,8.823e-05,2]
[426289057,1782247832000,-500.0,8.823e-05,2]
[426289055,1782247832000,-500.0,8.823e-05,2]
[426289083,1782247832000,-225.3791513,8.824e-05,2]
[426289050,1782247832000,-71.35779547,8.823e-05,2]
[426289084,1782247832000,-150.0,8.825e-05,2]
[426289106,1782247832000,-391.7,0.00011722,2]
[426289100,1782247832000,-810.93,0.00010991,2]
[426289104,1782247832000,-161.61,0.00011484,2]
[426289113,1782247832000,-1000.0,0.00012329,2]
[426289107,1782247832000,-166.66,0.00011871,2]
[426289105,1782247832000,-166.66,0.00011631,2]
[426289108,1782247832000,-1266.34,0.00012087,2]
[426289101,1782247832000,-161.61,0.00011136,2]
[426289102,1782247832000,-152.57,0.00011233,2]
[426289111,1782247832000,-252.28794091,0.0001225,2]
[426289109,1782247832000,-166.66,0.0001211,2]
[426289114,1782247832000,-39303.08510133,0.00012345,2]
[426289112,1782247832000,-164.02,0.00012329,2]
[426289110,1782247832000,-150.0,0.00012185,2]
[426289082,1782247832000,-500.0,8.824e-05,2]
[426289099,1782247832000,-150.0,0.00010991,2]
[426289098,1782247832000,-256.48,0.00010973,2]
[426289103,1782247832000,-166.66,0.00011391,2]
[426289096,1782247832000,-195.0,0.00010677,2]
[426289085,1782247832000,-160.0,8.825e-05,2]
[426289075,1782247832000,-160.0,8.823e-05,2]
[426289076,1782247832000,-500.0,8.824e-05,2]
[426289097,1782247832000,-161.61,0.00010788,2]
[426289079,1782247832000,-500.0,8.824e-05,2]
[426289077,1782247832000,-330.59739645,8.824e-05,2]
[426289088,1782247832000,-589.05,9.041e-05,2]
[426289086,1782247832000,-216.39158367,8.835e-05,2]
[426289078,1782247832000,-216.20444625,8.824e-05,2]
[426289091,1782247832000,-312.10002489,9.597e-05,2]
[426289090,1782247832000,-275.79675041,9.597e-05,2]
[426289092,1782247832000,-255.0,9.706e-05,2]
[426289089,1782247832000,-250.0,9.597e-05,2]
[426289093,1782247832000,-391.7,0.0001042,2]
[426289095,1782247832000,-200.0,0.00010578,2]
[426289087,1782247832000,-160.0,8.844e-05,2]
[426289094,1782247832000,-161.61,0.0001044,2]
[426289133,1782247838000,-205.99,0.00013,2]
[426289131,1782247838000,-500.0,0.00012865,2]
[426289128,1782247838000,-151.0,0.00012485,2]
[426289126,1782247838000,-152.06846284,0.00012385,2]
[426289129,1782247838000,-311.0,0.00012544,2]
[426289125,1782247838000,-166.66,0.0001235,2]
[426289132,1782247838000,-317.0,0.00012925,2]
[426289124,1782247838000,-1085787.78206043,0.00012345,2]
[426289123,1782247838000,-374909.13283824,0.00012345,2]
[426289134,1782247838000,-391.7,0.00013025,2]
[426289127,1782247838000,-151.0,0.00012485,2]
[426289137,1782247838000,-151.0,0.00013425,2]
[426289130,1782247838000,-166.66,0.0001259,2]
[426289138,1782247838000,-151.0,0.00013425,2]
[426289139,1782247838000,-211.46,0.00013437,2]
[426289149,1782247838000,-500.0,0.00013698,2]
[426289147,1782247838000,-500.0,0.00013698,2]
[426289145,1782247838000,-500.0,0.00013698,2]
[426289146,1782247838000,-500.0,0.00013698,2]
[426289144,1782247838000,-500.0,0.00013698,2]
[426289148,1782247838000,-500.0,0.00013698,2]
[426289135,1782247838000,-310.0,0.00013049,2]
[426289143,1782247838000,-500.0,0.00013698,2]
[426289140,1782247838000,-500.0,0.00013698,2]
[426289136,1782247838000,-252.28794082,0.00013322,2]
[426289142,1782247838000,-500.0,0.00013698,2]
[426289141,1782247838000,-500.0,0.00013698,2]
[426289213,1782247839000,-500.0,0.00015834,2]
[426289200,1782247839000,-512.66,0.00015068,2]
[426289202,1782247839000,-649.52,0.00015068,2]
[426289204,1782247839000,-1500.0,0.00015077,2]
[426289232,1782247839000,-500.0,0.00016438,2]
[426289207,1782247839000,-1555.5,0.00015625,2]
[426289211,1782247839000,-617.97,0.000157,2]
[426289215,1782247839000,-500.0,0.00015835,2]
[426289219,1782247839000,-188.93716951,0.000159,2]
[426289218,1782247839000,-2000.0,0.00015835,2]
[426289217,1782247839000,-2000.0,0.00015835,2]
[426289230,1782247839000,-500.0,0.00016438,2]
[426289224,1782247839000,-300.0,0.00016,2]
[426289222,1782247839000,-188.93716951,0.00016,2]
[426289223,1782247839000,-2043.41327135,0.00016,2]
[426289221,1782247839000,-2043.41327135,0.000159,2]
[426289225,1782247839000,-1613.0535,0.00016173,2]
[426289190,1782247839000,-500.0,0.00014899,2]
[426289229,1782247839000,-560.3,0.00016438,2]
[426289226,1782247839000,-2043.41327135,0.000162,2]
[426289227,1782247839000,-2043.41327135,0.000164,2]
[426289228,1782247839000,-500.0,0.00016437,2]
[426289231,1782247839000,-500.0,0.00016438,2]
[426289234,1782247839000,-500.0,0.00016438,2]
[426289220,1782247839000,-262.56742114,0.000159,2]
[426289198,1782247839000,-150.0,0.00015068,2]
[426289182,1782247839000,-500.0,0.0001489,2]
[426289196,1782247839000,-5800.0,0.000149,2]
[426289156,1782247839000,-199.5,0.00013825,2]
[426289154,1782247839000,-578.00000348,0.00013744,2]
[426289150,1782247839000,-524.95779422,0.00013698,2]
[426289151,1782247839000,-500.0,0.00013698,2]
[426289152,1782247839000,-502.55113792,0.00013698,2]
[426289153,1782247839000,-200.0,0.00013699,2]
[426289155,1782247839000,-212.191664,0.00013817,2]
[426289157,1782247839000,-250.0,0.00014,2]
[426289158,1782247839000,-391.7,0.00014327,2]
[426289160,1782247839000,-1277.0,0.00014385,2]
[426289163,1782247839000,-1361.0,0.00014385,2]
[426289165,1782247839000,-1229.0,0.00014385,2]
[426289161,1782247839000,-383.0,0.00014385,2]
[426289159,1782247839000,-3562.0,0.00014385,2]
[426289169,1782247839000,-216.0,0.00014385,2]
[426289171,1782247839000,-33323.2708,0.00014769,2]
[426289167,1782247839000,-6083.0,0.00014385,2]
[426289173,1782247839000,-2000.0,0.00014769,2]
[426289178,1782247839000,-500.0,0.00014868,2]
[426289180,1782247839000,-500.0,0.0001489,2]
[426289184,1782247839000,-500.0,0.0001489,2]
[426289176,1782247839000,-500.0,0.00014868,2]
[426289186,1782247839000,-553.59223122,0.0001489,2]
[426289188,1782247839000,-500.0,0.00014899,2]
[426289192,1782247839000,-500.0,0.00014899,2]
[426289194,1782247839000,-575.503723,0.00014899,2]
[426289235,1782247839000,-500.0,0.00016438,2]
[426289209,1782247839000,-391.7,0.0001563,2]
[426289236,1782247839000,-500.0,0.00016438,2]
[426289267,1782247839000,-3911.59766318,0.00016438,2]
[426289266,1782247839000,-3911.59766318,0.00016438,2]
[426289269,1782247839000,-3911.59766318,0.00016438,2]
[426289268,1782247839000,-3911.59766318,0.00016438,2]
[426289270,1782247839000,-3911.59766318,0.00016438,2]
[426289272,1782247839000,-3911.59766318,0.00016438,2]
[426289271,1782247839000,-3911.59766318,0.00016438,2]
[426289275,1782247839000,-3911.59766318,0.00016438,2]
[426289273,1782247839000,-3911.59766318,0.00016438,2]
[426289274,1782247839000,-3911.59766318,0.00016438,2]
[426289276,1782247839000,-3911.59766318,0.00016438,2]
[426289278,1782247839000,-3911.59766318,0.00016438,2]
[426289282,1782247839000,-3911.59766318,0.00016438,2]
[426289279,1782247839000,-3911.59766318,0.00016438,2]
[426289280,1782247839000,-3911.59766318,0.00016438,2]
[426289283,1782247839000,-3911.59766318,0.00016438,2]
[426289281,1782247839000,-3911.59766318,0.00016438,2]
[426289285,1782247839000,-3911.59766318,0.00016438,2]
[426289286,1782247839000,-3911.59766318,0.00016438,2]
[426289284,1782247839000,-3911.59766318,0.00016438,2]
[426289289,1782247839000,-3911.59766318,0.00016438,2]
[426289290,1782247839000,-3911.59766318,0.00016438,2]
[426289288,1782247839000,-3911.59766318,0.00016438,2]
[426289287,1782247839000,-3911.59766318,0.00016438,2]
[426289233,1782247839000,-500.0,0.00016438,2]
[426289265,1782247839000,-3911.59766318,0.00016438,2]
[426289263,1782247839000,-300.92510426,0.00016438,2]
[426289277,1782247839000,-3911.59766318,0.00016438,2]
[426289262,1782247839000,-500.0,0.00016438,2]
[426289261,1782247839000,-500.0,0.00016438,2]
[426289241,1782247839000,-500.0,0.00016438,2]
[426289238,1782247839000,-500.0,0.00016438,2]
[426289242,1782247839000,-500.0,0.00016438,2]
[426289239,1782247839000,-500.0,0.00016438,2]
[426289240,1782247839000,-500.0,0.00016438,2]
[426289244,1782247839000,-500.0,0.00016438,2]
[426289245,1782247839000,-500.0,0.00016438,2]
[426289243,1782247839000,-500.0,0.00016438,2]
[426289246,1782247839000,-500.0,0.00016438,2]
[426289250,1782247839000,-500.0,0.00016438,2]
[426289249,1782247839000,-500.0,0.00016438,2]
[426289248,1782247839000,-500.0,0.00016438,2]
[426289237,1782247839000,-500.0,0.00016438,2]
[426289253,1782247839000,-500.0,0.00016438,2]
[426289247,1782247839000,-500.0,0.00016438,2]
[426289260,1782247839000,-500.0,0.00016438,2]
[426289255,1782247839000,-500.0,0.00016438,2]
[426289257,1782247839000,-500.0,0.00016438,2]
[426289254,1782247839000,-500.0,0.00016438,2]
[426289264,1782247839000,-3911.59766318,0.00016438,2]
[426289258,1782247839000,-500.0,0.00016438,2]
[426289256,1782247839000,-500.0,0.00016438,2]
[426289252,1782247839000,-500.0,0.00016438,2]
[426289251,1782247839000,-500.0,0.00016438,2]
[426289259,1782247839000,-500.0,0.00016438,2]
[426289326,1782247840000,-2043.41327135,0.00017,2]
[426289333,1782247840000,-1229.0,0.00017385,2]
[426289323,1782247840000,-1672.7364795,0.00016721,2]
[426289321,1782247840000,-2043.41327135,0.000165,2]
[426289324,1782247840000,-164.02,0.00016767,2]
[426289330,1782247840000,-1277.0,0.00017385,2]
[426289329,1782247840000,-3562.0,0.00017385,2]
[426289328,1782247840000,-1734.62772924,0.00017269,2]
[426289325,1782247840000,-2043.41327135,0.000169,2]
[426289322,1782247840000,-2043.41327135,0.000167,2]
[426289331,1782247840000,-383.0,0.00017385,2]
[426289332,1782247840000,-1361.0,0.00017385,2]
[426289344,1782247840000,-205.98672192,0.00018,2]
[426289340,1782247840000,-1180.77794226,0.00018,2]
[426289337,1782247840000,-2043.41327135,0.000174,2]
[426289336,1782247840000,-216.0,0.00017385,2]
[426289338,1782247840000,-1798.80895522,0.00017817,2]
[426289335,1782247840000,-6083.0,0.00017385,2]
[426289346,1782247840000,-162.7835713,0.00018,2]
[426289349,1782247840000,-194.07998194,0.00018,2]
[426289342,1782247840000,-197.92444732,0.00018,2]
[426289341,1782247840000,-3721.13694336,0.00018,2]
[426289348,1782247840000,-169.87728653,0.00018,2]
[426289317,1782247840000,-3911.59766318,0.00016438,2]
[426289327,1782247840000,-2043.41327135,0.000172,2]
[426289316,1782247840000,-3911.59766318,0.00016438,2]
[426289294,1782247840000,-3911.59766318,0.00016438,2]
[426289315,1782247840000,-3911.59766318,0.00016438,2]
[426289362,1782247840000,-560.3,0.0001841,2]
[426289295,1782247840000,-3911.59766318,0.00016438,2]
[426289291,1782247840000,-3911.59766318,0.00016438,2]
[426289297,1782247840000,-3911.59766318,0.00016438,2]
[426289292,1782247840000,-3911.59766318,0.00016438,2]
[426289293,1782247840000,-3911.59766318,0.00016438,2]
[426289296,1782247840000,-3911.59766318,0.00016438,2]
[426289299,1782247840000,-3911.59766318,0.00016438,2]
[426289298,1782247840000,-3911.59766318,0.00016438,2]
[426289302,1782247840000,-3911.59766318,0.00016438,2]
[426289301,1782247840000,-3911.59766318,0.00016438,2]
[426289300,1782247840000,-3911.59766318,0.00016438,2]
[426289303,1782247840000,-3911.59766318,0.00016438,2]
[426289308,1782247840000,-3911.59766318,0.00016438,2]
[426289306,1782247840000,-3911.59766318,0.00016438,2]
[426289307,1782247840000,-3911.59766318,0.00016438,2]
[426289304,1782247840000,-3911.59766318,0.00016438,2]
[426289305,1782247840000,-3911.59766318,0.00016438,2]
[426289309,1782247840000,-3911.59766318,0.00016438,2]
[426289311,1782247840000,-3911.59766318,0.00016438,2]
[426289313,1782247840000,-3911.59766318,0.00016438,2]
[426289310,1782247840000,-3911.59766318,0.00016438,2]
[426289320,1782247840000,-512.66,0.00016438,2]
[426289314,1782247840000,-3911.59766318,0.00016438,2]
[426289312,1782247840000,-3911.59766318,0.00016438,2]
[426289318,1782247840000,-3911.59766314,0.00016438,2]
[426289352,1782247840000,-3721.13694336,0.000182,2]
[426289350,1782247840000,-350.0,0.00018,2]
[426289351,1782247840000,-1180.77794226,0.000182,2]
[426289382,1782247840000,-322.25,0.00018537,2]
[426289386,1782247840000,-322.25,0.00018537,2]
[426289388,1782247840000,-322.25,0.00018537,2]
[426289393,1782247840000,-322.25,0.00018537,2]
[426289395,1782247840000,-322.25,0.00018537,2]
[426289390,1782247840000,-322.25,0.00018537,2]
[426289391,1782247840000,-322.25,0.00018537,2]
[426289392,1782247840000,-322.25,0.00018537,2]
[426289387,1782247840000,-322.25,0.00018537,2]
[426289389,1782247840000,-322.25,0.00018537,2]
[426289396,1782247840000,-322.25,0.00018537,2]
[426289398,1782247840000,-322.25,0.00018537,2]
[426289397,1782247840000,-322.25,0.00018537,2]
[426289399,1782247840000,-322.25,0.00018537,2]
[426289401,1782247840000,-322.25,0.00018537,2]
[426289400,1782247840000,-322.25,0.00018537,2]
[426289402,1782247840000,-322.25,0.00018537,2]
[426289404,1782247840000,-322.25,0.00018537,2]
[426289405,1782247840000,-322.25,0.00018537,2]
[426289403,1782247840000,-322.25,0.00018537,2]
[426289407,1782247840000,-322.25,0.00018537,2]
[426289406,1782247840000,-322.25,0.00018537,2]
[426289409,1782247840000,-322.25,0.00018537,2]
[426289408,1782247840000,-322.25,0.00018537,2]
[426289356,1782247840000,-87762.54,0.00018356,2]
[426289383,1782247840000,-322.25,0.00018537,2]
[426289381,1782247840000,-322.25,0.00018537,2]
[426289394,1782247840000,-322.25,0.00018537,2]
[426289385,1782247840000,-322.25,0.00018537,2]
[426289354,1782247840000,-162.7835713,0.000182,2]
[426289384,1782247840000,-322.25,0.00018537,2]
[426289358,1782247840000,-1180.77794226,0.000184,2]
[426289353,1782247840000,-197.92444732,0.000182,2]
[426289357,1782247840000,-1865.36488656,0.00018365,2]
[426289363,1782247840000,-1180.77794226,0.000185,2]
[426289355,1782247840000,-1127.0,0.00018251,2]
[426289360,1782247840000,-162.7835713,0.000184,2]
[426289359,1782247840000,-3721.13694336,0.000184,2]
[426289373,1782247840000,-322.25,0.00018537,2]
[426289374,1782247840000,-322.25,0.00018537,2]
[426289367,1782247840000,-322.25,0.00018537,2]
[426289365,1782247840000,-217.68536207,0.00018515,2]
[426289361,1782247840000,-308.74843606,0.000184,2]
[426289375,1782247840000,-322.25,0.00018537,2]
[426289364,1782247840000,-3721.13694336,0.000185,2]
[426289369,1782247840000,-322.25,0.00018537,2]
[426289366,1782247840000,-322.25,0.00018537,2]
[426289371,1782247840000,-322.25,0.00018537,2]
[426289372,1782247840000,-322.25,0.00018537,2]
[426289368,1782247840000,-322.25,0.00018537,2]
[426289376,1782247840000,-322.25,0.00018537,2]
[426289378,1782247840000,-322.25,0.00018537,2]
[426289379,1782247840000,-322.25,0.00018537,2]
[426289370,1782247840000,-322.25,0.00018537,2]
[426289377,1782247840000,-322.25,0.00018537,2]
[426289380,1782247840000,-322.25,0.00018537,2]
[426289450,1782247841000,-151.0,0.00018913,2]
[426289453,1782247841000,-500.0,0.00018913,2]
[426289441,1782247841000,-500.0,0.00018913,2]
[426289451,1782247841000,-151.0,0.00018913,2]
[426289449,1782247841000,-500.0,0.00018913,2]
[426289452,1782247841000,-151.0,0.00018913,2]
[426289443,1782247841000,-151.0,0.00018913,2]
[426289446,1782247841000,-500.0,0.00018913,2]
[426289447,1782247841000,-151.0,0.00018913,2]
[426289457,1782247841000,-151.0,0.00018913,2]
[426289456,1782247841000,-500.0,0.00018913,2]
[426289448,1782247841000,-151.0,0.00018913,2]
[426289419,1782247841000,-3721.13694336,0.000187,2]
[426289470,1782247841000,-151.0,0.00018913,2]
[426289455,1782247841000,-151.0,0.00018913,2]
[426289460,1782247841000,-151.0,0.00018913,2]
[426289458,1782247841000,-151.0,0.00018913,2]
[426289466,1782247841000,-151.0,0.00018913,2]
[426289465,1782247841000,-500.0,0.00018913,2]
[426289467,1782247841000,-151.0,0.00018913,2]
[426289459,1782247841000,-500.0,0.00018913,2]
[426289463,1782247841000,-151.0,0.00018913,2]
[426289461,1782247841000,-151.0,0.00018913,2]
[426289464,1782247841000,-151.0,0.00018913,2]
[426289462,1782247841000,-500.0,0.00018913,2]
[426289469,1782247841000,-151.0,0.00018913,2]
[426289437,1782247841000,-151.0,0.00018913,2]
[426289454,1782247841000,-151.0,0.00018913,2]
[426289438,1782247841000,-500.0,0.00018913,2]
[426289417,1782247841000,-2000.0,0.00018638,2]
[426289444,1782247841000,-500.0,0.00018913,2]
[426289410,1782247841000,-322.25,0.00018537,2]
[426289411,1782247841000,-322.25,0.00018537,2]
[426289414,1782247841000,-322.25,0.00018537,2]
[426289413,1782247841000,-322.25,0.00018537,2]
[426289415,1782247841000,-322.25,0.00018537,2]
[426289416,1782247841000,-500.0,0.00018637,2]
[426289412,1782247841000,-322.25,0.00018537,2]
[426289418,1782247841000,-1180.77794226,0.000187,2]
[426289421,1782247841000,-3721.13694336,0.000189,2]
[426289432,1782247841000,-151.0,0.00018913,2]
[426289431,1782247841000,-500.0,0.00018913,2]
[426289420,1782247841000,-500.0,0.00018897,2]
[426289422,1782247841000,-1000.0,0.000189,2]
[426289445,1782247841000,-151.0,0.00018913,2]
[426289423,1782247841000,-200.0,0.00018913,2]
[426289424,1782247841000,-151.0,0.00018913,2]
[426289426,1782247841000,-151.0,0.00018913,2]
[426289425,1782247841000,-151.0,0.00018913,2]
[426289430,1782247841000,-151.0,0.00018913,2]
[426289428,1782247841000,-151.0,0.00018913,2]
[426289429,1782247841000,-151.0,0.00018913,2]
[426289440,1782247841000,-151.0,0.00018913,2]
[426289439,1782247841000,-151.0,0.00018913,2]
[426289434,1782247841000,-151.0,0.00018913,2]
[426289433,1782247841000,-1934.38338736,0.00018913,2]
[426289436,1782247841000,-151.0,0.00018913,2]
[426289435,1782247841000,-500.0,0.00018913,2]
[426289442,1782247841000,-151.0,0.00018913,2]
[426289427,1782247841000,-151.0,0.00018913,2]
[426289468,1782247841000,-500.0,0.00018913,2]
[426289473,1782247841000,-310.0,0.00019,2]
[426289478,1782247841000,-2005.9555727,0.00019461,2]
[426289516,1782247841000,-344.58181349,0.000204,2]
[426289517,1782247841000,-172.21727301,0.000204,2]
[426289507,1782247841000,-560.3,0.00020381,2]
[426289508,1782247841000,-3562.0,0.00020385,2]
[426289509,1782247841000,-1277.0,0.00020385,2]
[426289510,1782247841000,-383.0,0.00020385,2]
[426289515,1782247841000,-838.70053728,0.000204,2]
[426289511,1782247841000,-1361.0,0.00020385,2]
[426289513,1782247841000,-6083.0,0.00020385,2]
[426289512,1782247841000,-1229.0,0.00020385,2]
[426289514,1782247841000,-216.0,0.00020385,2]
[426289518,1782247841000,-200.0,0.00020557,2]
[426289520,1782247841000,-838.70053728,0.000206,2]
[426289521,1782247841000,-344.58181349,0.000206,2]
[426289522,1782247841000,-626.0,0.00020606,2]
[426289523,1782247841000,-838.70053728,0.000208,2]
[426289525,1782247841000,-620.0,0.00021,2]
[426289529,1782247841000,-178.0,0.00021,2]
[426289528,1782247841000,-220.0,0.00021,2]
[426289527,1782247841000,-196.27707293,0.00021,2]
[426289524,1782247841000,-344.58181349,0.000208,2]
[426289519,1782247841000,-2157.14243826,0.00020557,2]
[426289530,1782247841000,-226.0,0.00021,2]
[426289526,1782247841000,-2089.0,0.00021,2]
[426289531,1782247841000,-299.0,0.00021,2]
[426289532,1782247841000,-256.0,0.00021,2]
[426289472,1782247841000,-152.0,0.00019,2]
[426289505,1782247841000,-344.58181349,0.000202,2]
[426289506,1782247841000,-172.21727301,0.000202,2]
[426289486,1782247841000,-344.58181349,0.0002,2]
[426289504,1782247841000,-838.70053728,0.000202,2]
[426289475,1782247841000,-3721.13694336,0.000191,2]
[426289502,1782247841000,-2080.17592889,0.00020009,2]
[426289476,1782247841000,-3721.13694336,0.000193,2]
[426289474,1782247841000,-151.0,0.00019,2]
[426289471,1782247841000,-310.0,0.00019,2]
[426289480,1782247841000,-3721.13694336,0.000197,2]
[426289479,1782247841000,-3721.13694336,0.000195,2]
[426289491,1782247841000,-400.0,0.0002,2]
[426289490,1782247841000,-226.0,0.0002,2]
[426289481,1782247841000,-514.97,0.000199,7]
[426289483,1782247841000,-2089.0,0.0002,2]
[426289482,1782247841000,-620.0,0.0002,2]
[426289485,1782247841000,-838.70053728,0.0002,2]
[426289484,1782247841000,-201.23757348,0.0002,2]
[426289477,1782247841000,-200.0,0.00019461,2]
[426289489,1782247841000,-178.0,0.0002,2]
[426289487,1782247841000,-220.0,0.0002,2]
[426289499,1782247841000,-626.0,0.0002,2]
[426289503,1782247841000,-211.46,0.00020155,2]
[426289497,1782247841000,-279.0,0.0002,2]
[426289495,1782247841000,-161.0,0.0002,2]
[426289493,1782247841000,-256.0,0.0002,2]
[426289496,1782247841000,-167.0,0.0002,2]
[426289494,1782247841000,-1004.0,0.0002,2]
[426289498,1782247841000,-370.0,0.0002,2]
[426289500,1782247841000,-199.0,0.0002,2]
[426289492,1782247841000,-299.0,0.0002,2]
[426289488,1782247841000,-172.21727301,0.0002,2]
[426289501,1782247841000,-200.0,0.00020009,2]
[426289566,1782247842000,-500.0,0.00021036,2]
[426289576,1782247842000,-151.0,0.00021146,2]
[426289574,1782247842000,-200.0,0.00021105,2]
[426289570,1782247842000,-152.0,0.00021036,2]
[426289563,1782247842000,-152.0,0.00021036,2]
[426289562,1782247842000,-500.0,0.00021036,2]
[426289560,1782247842000,-500.0,0.00021036,2]
[426289575,1782247842000,-2236.95670847,0.00021105,2]
[426289558,1782247842000,-500.0,0.00021036,2]
[426289561,1782247842000,-152.0,0.00021036,2]
[426289572,1782247842000,-151.0,0.00021091,2]
[426289586,1782247842000,-151.0,0.00021311,2]
[426289567,1782247842000,-152.0,0.00021036,2]
[426289569,1782247842000,-152.0,0.00021036,2]
[426289571,1782247842000,-152.0,0.00021036,2]
[426289578,1782247842000,-196.27707293,0.000212,2]
[426289577,1782247842000,-151.0,0.00021146,2]
[426289579,1782247842000,-151.0,0.00021201,2]
[426289582,1782247842000,-626.0,0.00021212,3]
[426289580,1782247842000,-151.0,0.00021201,2]
[426289583,1782247842000,-151.0,0.00021256,2]
[426289585,1782247842000,-151.0,0.00021311,2]
[426289559,1782247842000,-152.0,0.00021036,2]
[426289568,1782247842000,-152.0,0.00021036,2]
[426289557,1782247842000,-152.0,0.00021036,2]
[426289544,1782247842000,-151.0,0.00021036,2]
[426289556,1782247842000,-500.0,0.00021036,2]
[426289541,1782247842000,-500.0,0.00021036,2]
[426289542,1782247842000,-500.0,0.00021036,2]
[426289536,1782247842000,-370.0,0.00021,2]
[426289534,1782247842000,-500.0,0.00021,2]
[426289535,1782247842000,-279.0,0.00021,2]
[426289533,1782247842000,-1004.0,0.00021,2]
[426289538,1782247842000,-210.92911375,0.00021036,2]
[426289537,1782247842000,-199.0,0.00021,2]
[426289540,1782247842000,-578.20924308,0.00021036,2]
[426289539,1782247842000,-174.61919141,0.00021036,2]
[426289543,1782247842000,-500.0,0.00021036,2]
[426289554,1782247842000,-292.26734221,0.00021036,2]
[426289581,1782247842000,-164.02,0.00021205,2]
[426289546,1782247842000,-152.0,0.00021036,2]
[426289545,1782247842000,-500.0,0.00021036,2]
[426289549,1782247842000,-152.0,0.00021036,2]
[426289550,1782247842000,-500.0,0.00021036,2]
[426289553,1782247842000,-500.0,0.00021036,2]
[426289547,1782247842000,-500.0,0.00021036,2]
[426289552,1782247842000,-152.0,0.00021036,2]
[426289551,1782247842000,-670.58624095,0.00021036,2]
[426289565,1782247842000,-152.0,0.00021036,2]
[426289564,1782247842000,-500.0,0.00021036,2]
[426289555,1782247842000,-151.0,0.00021036,2]
[426289548,1782247842000,-151.0,0.00021036,2]
[426289587,1782247842000,-151.0,0.00021366,2]
[426289573,1782247842000,-151.0,0.00021091,2]
[426289588,1782247842000,-151.0,0.00021366,2]
[426289616,1782247842000,-178.65,0.00021918,2]
[426289617,1782247842000,-2000.0,0.00021918,2]
[426289630,1782247842000,-680762.42476019,0.00022,2]
[426289620,1782247842000,-620.0,0.00022,2]
[426289619,1782247842000,-500.0,0.00022,3]
[426289621,1782247842000,-2089.0,0.00022,2]
[426289622,1782247842000,-220.0,0.00022,2]
[426289625,1782247842000,-450.0,0.00022,2]
[426289626,1782247842000,-299.0,0.00022,2]
[426289624,1782247842000,-226.0,0.00022,2]
[426289623,1782247842000,-178.0,0.00022,2]
[426289618,1782247842000,-500.0,0.00022,3]
[426289628,1782247842000,-1004.0,0.00022,2]
[426289629,1782247842000,-6346565.63,0.00022,2]
[426289634,1782247842000,-307.76,0.00022,7]
[426289631,1782247842000,-316.32,0.00022,2]
[426289635,1782247842000,-370.0,0.00022,2]
[426289633,1782247842000,-279.0,0.00022,2]
[426289636,1782247842000,-210.92911375,0.00022132,2]
[426289639,1782247842000,-294.54871921,0.00022201,2]
[426289632,1782247842000,-725.0,0.00022,2]
[426289640,1782247842000,-2405.55389863,0.00022201,2]
[426289584,1782247842000,-151.0,0.00021256,2]
[426289638,1782247842000,-292.26734221,0.00022132,2]
[426289627,1782247842000,-256.0,0.00022,2]
[426289613,1782247842000,-626.0,0.00021818,3]